[Event "Romanian Superliga Women 2024"]
[Site "Mamaia"]
[Date "2024.10.03"]
[Round "4.1"]
[White "Stanciu, Andreea-Briana"]
[Black "Bulmaga, Irina"]
[Result "0-1"]
[ECO "A47"]
[WhiteElo "1957"]
[BlackElo "2406"]
[Annotator "RC"]
[PlyCount "88"]
[EventDate "2024.09.26"]
[EventType "team-tourn"]
[EventCountry "ROU"]
[SourceTitle "playchess.com"]
[Source "ChessBase"]
[SourceQuality "1"]
[TimeControl "40/5400+30:1800+30"]

1. d4 {[%emt 0:03:52]} Nf6 {[%emt 0:00:08]} 2. Bf4 {[%emt 0:00:05]} e6 {[%emt 0:00:06]} 3. Nf3 {[%emt 0:00:06]} b6 {[%emt 0:00:14]} 4. e3 {[%emt 0:00:17]} Bb7 {[%emt 0:00:08]} 5. Nbd2 {[%emt 0:00:31]} g6 {[%emt 0:01:21]} 6. Bd3 {[%emt 0:02:10]} Bg7 {[%emt 0:00:12]} 7. e4 {[%emt 0:02:46]} d6 {[%emt 0:00:49]} 8. O-O {[%emt 0:00:27]} O-O {[%emt 0:00:27]} 9. h3 {[%emt 0:02:00]} Nc6 {[%emt 0:00:46]} 10. c3 {[%emt 0:00:49]} e5 {[%emt 0:00:20]} 11. Bh2 {[%emt 0:04:13]} Nd7 {[%emt 0:00:35]} 12. dxe5 {[%emt 0:10:19]} Ncxe5 {[%emt 0:00:36]} 13. Nxe5 {[%emt 0:00:51]} Nxe5 {[%emt 0:02:07]} 14. Be2 {[%emt 0:03:16]} Qe7 {[%emt 0:01:42]} 15. f4 {[%emt 0:03:15]} Nd7 {[%emt 0:00:21]} 16. Qc2 {[%emt 0:03:48]} Nc5 {[%emt 0:04:58]} 17. Bd3 {[%emt 0:02:54]} a5 {[%emt 0:04:22]} 18. Rfe1 {[%emt 0:00:45]} a4 {[%emt 0:05:35]} 19. Rad1 {[%emt 0:07:59]} Qf6 {[%emt 0:17:51]} 20. e5 {[%emt 0:11:45]} dxe5 {[%emt 0:00:49]} 21. fxe5 {[%emt 0:00:18]} Qe6 {[%emt 0:05:51]} 22. Bc4 {[%emt 0:01:28]} Qc6 {[%emt 0:06:45]} 23. Nf3 {[%emt 0:01:22]} Ne6 {[%emt 0:02:32]} 24. Bd5 {[%emt 0:04:26]} Qc5+ {[%emt 0:01:07]} 25. Qf2 {[%emt 0:00:05]} Bxd5 {[%emt 0:03:28]} 26. Qxc5 {[%emt 0:01:06]} bxc5 {[%emt 0:03:24]} 27. Rxd5 {[%emt 0:00:17]} Rfb8 {[%emt 0:00:29]} 28. Re2 {[%emt 0:05:53]} Bh6 {[%emt 0:00:50]} 29. Ne1 {[%emt 0:03:38]} c4 {[%emt 0:03:42]} 30. Rd7 {[%emt 0:03:18]} a3 {[%emt 0:04:13]} 31. bxa3 {[%emt 0:00:27]} Rxa3 {[%emt 0:00:26]} 32. Rc2 {[%emt 0:00:42]} Rba8 {[%emt 0:02:34]} 33. Bg3 {[%emt 0:05:31]} Rxa2 {[%emt 0:00:35]} 34. Bf2 {[%emt 0:01:20]} Bf4 {[%emt 0:03:02]} 35. Rd5 {[%emt 0:04:49]} R8a5 {[%emt 0:09:10]} 36. Rxa5 {[%emt 0:03:10]} Rxa5 {[%emt 0:00:07]} 37. Nf3 {[%emt 0:00:13]} Ra1+ {[%emt 0:00:42]} 38. Be1 {[%emt 0:00:22]} Bg3 {[%emt 0:00:00]} 39. Re2 {[%emt 0:01:51]} Nf4 {[%emt 0:04:11]} 40. Re4 {[%emt 0:00:00]} Nd3 {[%emt 0:00:00]} 41. Kf1 {[%emt 0:00:10]} Kf8 {[%emt 0:02:07]} 42. e6 {[%emt 0:00:45]} Bxe1 {[%emt 0:01:00]} 43. Nxe1 {[%emt 0:00:06]} f5 {[%emt 0:00:28]} 44. Re2 {[%emt 0:00:14]} Ke7 {[%emt 0:00:07]} 0-1

[Event "Romanian Superliga Women 2024"]
[Site "Mamaia"]
[Date "2024.10.03"]
[Round "4.2"]
[White "Fataliyeva, Ulviyya"]
[Black "Trifoi, Mihaela-Ioana"]
[Result "1-0"]
[ECO "D02"]
[WhiteElo "2378"]
[BlackElo "2016"]
[Annotator "TA"]
[PlyCount "63"]
[EventDate "2024.09.26"]
[EventType "team-tourn"]
[EventCountry "ROU"]
[SourceTitle "playchess.com"]
[Source "ChessBase"]
[SourceQuality "1"]
[TimeControl "40/5400+30:1800+30"]

{[%evp 11,63,-2,0,-3,-10,-14,7,0,114,103,101,90,102,97,96,97,107,95,97,89,127,110,139,134,149,146,139,102,129,126,148,148,152,141,184,197,191,183,189,183,211,203,230,161,218,114,272,275,263,263,373,329,341,269]} 1. d4 {[%emt 1:31:00]} d5 {[%emt 0:03:57]} 2. Bf4 {[%emt 0:00:00]} Nf6 {[%emt 0:00:18]} 3. e3 {[%emt 0:00:00]} e6 {[%emt 0:00:16]} 4. Nf3 {[%emt 0:00:00]} Bd6 {[%emt 0:00:45]} 5. Ne5 {[%emt 0:00:00]} O-O {[%emt 0:00:36]} 6. Nd2 {[%emt 0:00:00]} c5 {[%emt 0:00:06]} 7. c3 {[%emt 0:00:00]} Qc7 {[%emt 0:00:21]} 8. Bd3 {[%emt 0:00:00]} Nc6 {[%emt 0:01:16]} 9. Ndf3 {[%emt 0:00:00] The position is equal.} Nd7 {[%emt 0:21:18]} (9... c4 $11 {keeps the balance.} 10. Bc2 b5) 10. Ng5 $16 {[%emt 0:00:00]} Nf6 {[%emt 0:12:20] [#]} 11. Ng4 $1 {[%emt 0:00:00] White is much more active. The black rooks are passive.} Ne4 {[%emt 0:00:37]} 12. Bxd6 {[%emt 0:00:00]} Qxd6 {[%emt 0:00:08]} 13. Bxe4 {[%emt 0:00:00]} (13. Nxe4 dxe4 14. Bxe4 f5 15. Bxc6 Qxc6 $11) 13... dxe4 {[%emt 0:00:31]} 14. Nxe4 {[%emt 0:00:00]} Qe7 {[%emt 0:07:48] [#]} 15. Ne5 $1 {[%emt 0:00:00] aiming for Nxc6.} ({Worse is} 15. Nxc5 f5 $17) 15... Nxe5 {[%emt 0:00:31]} 16. dxe5 {[%emt 0:00:00]} b6 {[%emt 0:00:23] Black is weak on the dark squares} 17. Qg4 {[%emt 0:00:00] And now Nf6+ would win.} Kh8 {[%emt 0:04:39]} 18. O-O-O {[%emt 0:00:00]} Bb7 {[%emt 0:10:09][%cal Bc8b7,Bb7c6,Bc6e8][%mdl 32]} 19. Ng3 {[%emt 0:00:00]} f5 {[%emt 0:05:46]} 20. exf6 {[%emt 0:00:00]} gxf6 {[%emt 0:04:44]} 21. e4 {[%emt 0:00:00]} Bc6 {[%emt 0:02:04]} 22. Rd3 {[%emt 0:00:00]} Rad8 {[%emt 0:02:32]} 23. Rhd1 {[%emt 0:00:00] Strongly threatening Rxd8.} Rxd3 {[%emt 0:05:02]} 24. Rxd3 {[%emt 0:00:00]} Be8 {[%emt 0:08:15]} 25. Qf4 {[%emt 0:00:00]} Kg7 {[%emt 0:06:40]} 26. h4 {[%emt 0:00:00]} h6 {[%emt 0:01:18][%cal Bh7h6,Bh6h5][%mdl 32]} 27. Nf1 {[%emt 0:00:00]} Kh7 {[%emt 0:01:08]} (27... Bb5 $142) 28. Nh2 {[%emt 0:00:00]} (28. Qd6 $18 Rf7 29. Ne3) 28... e5 $2 {[%emt 0:00:29] Loses the game.} (28... f5 $16 {was necessary.}) 29. Qf5+ $18 {[%emt 0:00:00]} Kh8 {[%emt 0:00:04]} 30. Ng4 {[%emt 0:00:00]} Qg7 {[%emt 0:00:05]} (30... h5 $142) 31. Rd8 {[%emt 0:00:00]} h5 {[%emt 0:01:19]} 32. Nxf6 {[%emt 0:00:00] Weighted Error Value: White=0.12 (very precise) /Black=0.31.  Mistake:       	White=1     	Black=4      Inaccurate:     	---       	Black=2      OK:         	White=8     	Black=5      Best:        	White=3     	---        Strong:       	White=2     	---} 1-0

[Event "Romanian Superliga Women 2024"]
[Site "Mamaia"]
[Date "2024.10.03"]
[Round "4.3"]
[White "Patru, Alexandra-Ioana"]
[Black "Navrotescu, Andreea"]
[Result "0-1"]
[ECO "E63"]
[WhiteElo "1832"]
[BlackElo "2281"]
[Annotator "RC"]
[PlyCount "58"]
[EventDate "2024.09.26"]
[EventType "team-tourn"]
[EventCountry "ROU"]
[SourceTitle "playchess.com"]
[Source "ChessBase"]
[SourceQuality "1"]
[TimeControl "40/5400+30:1800+30"]

1. d4 {[%emt 0:04:28]} Nf6 {[%emt 0:00:05]} 2. Nf3 {[%emt 0:00:13]} g6 {[%emt 0:00:07]} 3. g3 {[%emt 0:00:05]} Bg7 {[%emt 0:00:07]} 4. Bg2 {[%emt 0:00:05]} O-O {[%emt 0:00:12]} 5. O-O {[%emt 0:00:30]} d6 {[%emt 0:00:21]} 6. c4 {[%emt 0:02:02]} Nc6 {[%emt 0:00:11]} 7. Nc3 {[%emt 0:01:39]} a6 {[%emt 0:00:14]} 8. Re1 {[%emt 0:06:03]} Rb8 {[%emt 0:03:07]} 9. e4 {[%emt 0:08:36]} b5 {[%emt 0:02:37]} 10. b3 {[%emt 0:20:21]} bxc4 {[%emt 0:02:28]} 11. bxc4 {[%emt 0:00:06]} Na5 {[%emt 0:00:42]} 12. Qd3 {[%emt 0:02:10]} c5 {[%emt 0:00:57]} 13. d5 {[%emt 0:04:01]} Rb4 {[%emt 0:20:43]} 14. Nd2 {[%emt 0:02:12]} Ng4 {[%emt 0:00:29]} 15. a3 {[%emt 0:07:07]} Rb7 {[%emt 0:11:09]} 16. Nf3 {[%emt 0:08:00]} Rb3 {[%emt 0:03:38]} 17. Bd2 {[%emt 0:01:21]} f5 {[%emt 0:00:17]} 18. Rec1 {[%emt 0:10:53]} fxe4 {[%emt 0:01:45]} 19. Qxe4 {[%emt 0:00:06]} Rb2 {[%emt 0:02:49]} 20. Ra2 {[%emt 0:01:34]} Bxc3 {[%emt 0:00:30]} 21. Rxb2 {[%emt 0:00:42]} Bxb2 {[%emt 0:00:04]} 22. Re1 {[%emt 0:00:18]} Nb3 {[%emt 0:00:39]} 23. Bg5 {[%emt 0:00:42]} Bf6 {[%emt 0:07:49]} 24. Bh3 {[%emt 0:02:48]} Nxf2 {[%emt 0:01:31]} 25. Be6+ {[%emt 0:00:23]} Kg7 {[%emt 0:06:18]} 26. Qh4 {[%emt 0:01:42]} Bxe6 {[%emt 0:05:47]} 27. dxe6 {[%emt 0:05:44]} Qa8 {[%emt 0:02:57]} 28. Re3 {[%emt 0:05:24]} Bxg5 {[%emt 0:00:18]} 29. Qxg5 {[%emt 0:00:07]} Nh3+ {[%emt 0:00:06]} 0-1

[Event "Romanian Superliga Women 2024"]
[Site "Mamaia"]
[Date "2024.10.03"]
[Round "4.5"]
[White "Hoanca, Alexia-Ioana"]
[Black "Semenova, Vasylyna"]
[Result "1-0"]
[ECO "B12"]
[WhiteElo "1962"]
[BlackElo "1887"]
[Annotator "NA RC"]
[PlyCount "83"]
[EventDate "2024.09.26"]
[EventType "team-tourn"]
[EventCountry "ROU"]
[SourceTitle "playchess.com"]
[Source "ChessBase"]
[SourceQuality "1"]
[TimeControl "40/5400+30:1800+30"]

1. e4 {[%emt 0:00:02]} c6 {[%emt 0:00:04]} 2. d4 {[%emt 0:00:08]} d5 {[%emt 0:00:04]} 3. e5 {[%emt 0:00:27]} c5 {[%emt 0:00:13]} 4. dxc5 {[%emt 0:00:06]} Nc6 {[%emt 0:00:05]} 5. f4 {[%emt 0:00:07]} e6 {[%emt 0:00:44]} 6. Be3 {[%emt 0:01:19]} d4 {[%emt 0:14:56]} 7. Bf2 {[%emt 0:00:53]} Bxc5 {[%emt 0:00:25]} 8. Nd2 {[%emt 0:00:09]} Nge7 {[%emt 0:17:11]} 9. Qf3 {[%emt 0:01:00]} b6 {[%emt 0:16:13]} 10. a3 {[%emt 0:03:02]} a5 {[%emt 0:01:46]} 11. Bd3 {[%emt 0:08:26]} Bb7 {[%emt 0:02:29]} 12. Ne2 {[%emt 0:05:42]} Qd7 {[%emt 0:02:56]} 13. Ne4 {[%emt 0:04:51]} Ng6 {[%emt 0:09:00]} 14. O-O {[%emt 0:03:39]} O-O {[%emt 0:03:23]} 15. h4 {[%emt 0:10:52]} Kh8 {[%emt 0:10:54]} 16. Ng5 {[%emt 0:11:41]} h6 {[%emt 0:05:13]} 17. Qh5 {[%emt 0:04:38]} Kg8 {[%emt 0:00:41]} 18. Nxf7 {[%emt 0:02:51]} Qxf7 {[%emt 0:00:50]} 19. Bxg6 {[%emt 0:00:26]} Qe7 {[%emt 0:01:06]} 20. Be4 {[%emt 0:07:50]} Qf7 {[%emt 0:03:10]} 21. Qg4 {[%emt 0:04:07]} Rac8 {[%emt 0:02:55]} 22. Bg6 {[%emt 0:03:36]} Qe7 {[%emt 0:00:20]} 23. Ng3 {[%emt 0:01:00]} Kh8 {[%emt 0:03:25]} 24. Bd3 {[%emt 0:02:50]} Qf7 {[%emt 0:00:16]} 25. Nh5 {[%emt 0:02:21]} Ne7 {[%emt 0:01:22]} 26. Qe2 {[%emt 0:03:12]} Ng6 {[%emt 0:01:07]} 27. Bg3 {[%emt 0:08:26]} Ne7 {[%emt 0:01:08]} 28. Kh2 {[%emt 0:02:12]} Nf5 {[%emt 0:00:27]} 29. Bf2 {[%emt 0:00:30]} Be7 {[%emt 0:00:40]} 30. g4 {[%emt 0:00:51]} Nxh4 {[%emt 0:00:33]} 31. Bxh4 {[%emt 0:00:35]} Bxh4 {[%emt 0:00:10]} 32. f5 {[%emt 0:00:35]} Rcd8 {[%emt 0:01:22]} 33. Nf4 {[%emt 0:01:42]} exf5 {[%emt 0:01:03]} 34. Bxf5 {[%emt 0:00:24]} Rfe8 {[%emt 0:00:30]} 35. Ng6+ {[%emt 0:00:59]} Kg8 {[%emt 0:00:08]} 36. Nxh4 {[%emt 0:00:28]} Qd5 {[%emt 0:00:29]} 37. Ng6 {[%emt 0:01:05]} d3 {[%emt 0:00:28]} 38. Bxd3 {[%emt 0:01:27]} Rc8 {[%emt 0:01:04]} 39. Rf8+ {[%emt 0:00:52]} Rxf8 {[%emt 0:00:13]} 40. Ne7+ {[%emt 0:00:00]} Kh8 {[%emt 0:00:00]} 41. Nxd5 {[%emt 0:00:08]} Bxd5 {[%emt 0:00:30]} 42. Rf1 {[%emt 0:01:16]} 1-0

[Event "Romanian Superliga Women 2024"]
[Site "Mamaia"]
[Date "2024.10.03"]
[Round "4.6"]
[White "Sunea, Sara Maria"]
[Black "Batagan, Ilinca-Petra"]
[Result "0-1"]
[ECO "D02"]
[WhiteElo "1871"]
[BlackElo "1935"]
[Annotator "NA RC"]
[PlyCount "128"]
[EventDate "2024.09.26"]
[EventType "team-tourn"]
[EventCountry "ROU"]
[SourceTitle "playchess.com"]
[Source "ChessBase"]
[SourceQuality "1"]
[TimeControl "40/5400+30:1800+30"]

1. d4 {[%emt 0:00:06]} d5 {[%emt 0:00:35]} 2. Nf3 {[%emt 0:00:08]} e6 {[%emt 0:01:51]} 3. Bf4 {[%emt 0:02:52]} Nf6 {[%emt 0:02:01]} 4. e3 {[%emt 0:00:23]} c5 {[%emt 0:01:59]} 5. Nbd2 {[%emt 0:01:05]} Nc6 {[%emt 0:00:42]} 6. c3 {[%emt 0:00:14]} cxd4 {[%emt 0:01:55]} 7. exd4 {[%emt 0:00:11]} Nh5 {[%emt 0:00:17]} 8. Be3 {[%emt 0:03:31]} Bd6 {[%emt 0:02:35]} 9. Ne5 {[%emt 0:05:39]} g6 {[%emt 0:01:07]} 10. f4 {[%emt 0:08:40]} f6 {[%emt 0:11:53]} 11. Nd3 {[%emt 0:05:12]} Ng7 {[%emt 0:01:21]} 12. Nf3 {[%emt 0:02:10]} Bd7 {[%emt 0:09:52]} 13. Be2 {[%emt 0:05:51]} Qc7 {[%emt 0:04:23]} 14. g3 {[%emt 0:03:19]} O-O {[%emt 0:02:26]} 15. O-O {[%emt 0:05:05]} Nf5 {[%emt 0:01:49]} 16. Bf2 {[%emt 0:03:36]} Na5 {[%emt 0:11:14]} 17. Re1 {[%emt 0:07:21]} Nc4 {[%emt 0:06:53]} 18. Bf1 {[%emt 0:01:36]} Be7 {[%emt 0:02:47]} 19. Bh3 {[%emt 0:10:41]} Ncd6 {[%emt 0:12:21]} 20. Nc5 {[%emt 0:02:30]} Qc8 {[%emt 0:00:35]} 21. Qe2 {[%emt 0:03:53]} Kf7 {[%emt 0:00:19]} 22. g4 {[%emt 0:05:24]} Ng7 {[%emt 0:01:40]} 23. g5 {[%emt 0:04:35]} Ngf5 {[%emt 0:04:38]} 24. Bg2 {[%emt 0:09:09]} b6 {[%emt 0:00:57]} 25. Nd3 {[%emt 0:02:06]} Bb5 {[%emt 0:03:38]} 26. gxf6 {[%emt 0:01:51]} Bxf6 {[%emt 0:01:20]} 27. Nde5+ {[%emt 0:02:02]} Kg7 {[%emt 0:01:18]} 28. Qc2 {[%emt 0:00:57]} Ne4 {[%emt 0:00:53]} 29. a4 {[%emt 0:01:16]} Ba6 {[%emt 0:01:51]} 30. Ng4 {[%emt 0:01:34]} Nfd6 {[%emt 0:05:44]} 31. Bg3 {[%emt 0:01:58]} Nf5 {[%emt 0:00:47]} 32. Bf2 {[%emt 0:00:38]} Nfd6 {[%emt 0:00:25]} 33. Rac1 {[%emt 0:00:48]} Rb8 {[%emt 0:04:01]} 34. Nd2 {[%emt 0:00:23]} Nxf2 {[%emt 0:00:15]} 35. Nxf2 {[%emt 0:00:12]} Bh4 {[%emt 0:00:09]} 36. Nh3 {[%emt 0:00:32]} Bxe1 {[%emt 0:00:12]} 37. Rxe1 {[%emt 0:00:01]} h6 {[%emt 0:00:49]} 38. Nf3 {[%emt 0:00:57]} Nf5 {[%emt 0:00:20]} 39. Qd2 {[%emt 0:00:50]} Rb7 {[%emt 0:00:55]} 40. Nf2 {[%emt 0:00:00]} Re7 {[%emt 0:00:00]} 41. Ng4 {[%emt 0:05:58]} Ree8 {[%emt 0:10:41]} 42. Nge5 {[%emt 0:02:18]} Qd8 {[%emt 0:01:45]} 43. Kh1 {[%emt 0:04:56]} Nd6 {[%emt 0:06:30]} 44. Bh3 {[%emt 0:02:27]} Ne4 {[%emt 0:06:34]} 45. Qg2 {[%emt 0:00:20]} Qf6 {[%emt 0:00:25]} 46. Nd7 {[%emt 0:13:26]} Qxf4 {[%emt 0:00:21]} 47. Nxf8 {[%emt 0:00:05]} Rxf8 {[%emt 0:00:10]} 48. Bg4 {[%emt 0:00:38]} Qxg4 {[%emt 0:00:39]} 49. Qxg4 {[%emt 0:00:49]} Nf2+ {[%emt 0:00:05]} 50. Kg2 {[%emt 0:00:06]} Nxg4 {[%emt 0:00:06]} 51. Rxe6 {[%emt 0:00:11]} Bc8 {[%emt 0:03:56]} 52. Re7+ {[%emt 0:01:44]} Rf7 {[%emt 0:00:19]} 53. Re8 {[%emt 0:00:24]} Bd7 {[%emt 0:01:43]} 54. Ra8 {[%emt 0:01:06]} Bxa4 {[%emt 0:00:12]} 55. h3 {[%emt 0:00:07]} Bd1 {[%emt 0:01:24]} 56. hxg4 {[%emt 0:00:16]} Bxf3+ {[%emt 0:00:05]} 57. Kg3 {[%emt 0:00:03]} Be4 {[%emt 0:00:17]} 58. b4 {[%emt 0:00:15]} Kf6 {[%emt 0:01:40]} 59. Kf4 {[%emt 0:00:12]} Ke6+ {[%emt 0:00:15]} 60. Kg3 {[%emt 0:00:24]} Rf3+ {[%emt 0:00:24]} 61. Kh2 {[%emt 0:00:04]} Rxc3 {[%emt 0:00:15]} 62. Rxa7 {[%emt 0:00:04]} Rb3 {[%emt 0:00:16]} 63. Rh7 {[%emt 0:00:17]} Rxb4 {[%emt 0:00:12]} 64. Rxh6 {[%emt 0:00:05]} Rxd4 {[%emt 0:00:06]} 0-1

[Event "Romanian Superliga Women 2024"]
[Site "Mamaia"]
[Date "2024.10.03"]
[Round "4.7"]
[White "Sariteanu, Sabina"]
[Black "Bitca, Emilia"]
[Result "1/2-1/2"]
[ECO "B47"]
[WhiteElo "1815"]
[BlackElo "1865"]
[Annotator "NA RC"]
[PlyCount "95"]
[EventDate "2024.09.26"]
[EventType "team-tourn"]
[EventCountry "ROU"]
[SourceTitle "playchess.com"]
[Source "ChessBase"]
[SourceQuality "1"]
[TimeControl "40/5400+30:1800+30"]

1. e4 {[%emt 0:01:37]} c5 {[%emt 0:00:00]} 2. Nc3 {[%emt 0:01:02]} e6 {[%emt 0:00:43]} 3. Nf3 {[%emt 0:05:28]} Nc6 {[%emt 0:01:31]} 4. d4 {[%emt 0:02:34]} cxd4 {[%emt 0:00:15]} 5. Nxd4 {[%emt 0:00:10]} Qc7 {[%emt 0:00:48]} 6. Ndb5 {[%emt 0:00:50]} Qb8 {[%emt 0:00:10]} 7. a4 {[%emt 0:07:51]} a6 {[%emt 0:05:15]} 8. Na3 {[%emt 0:00:22]} Nf6 {[%emt 0:02:17]} 9. Be3 {[%emt 0:02:53]} Bb4 {[%emt 0:11:15]} 10. Nc4 {[%emt 0:16:54]} Nxe4 {[%emt 0:15:15]} 11. Qg4 {[%emt 0:00:08]} Nxc3 {[%emt 0:13:07]} 12. Qxg7 {[%emt 0:00:44]} Nd5+ {[%emt 0:06:52]} 13. c3 {[%emt 0:00:07]} Rf8 {[%emt 0:00:16]} 14. cxb4 {[%emt 0:00:11]} Nxe3 {[%emt 0:00:55]} 15. fxe3 {[%emt 0:02:20]} Nxb4 {[%emt 0:04:54]} 16. Rd1 {[%emt 0:00:28]} Nd5 {[%emt 0:16:01]} 17. e4 {[%emt 0:01:17]} b5 {[%emt 0:01:05]} 18. exd5 {[%emt 0:06:10]} bxc4 {[%emt 0:00:08]} 19. d6 {[%emt 0:05:38]} Bb7 {[%emt 0:01:10]} 20. Bxc4 {[%emt 0:00:58]} Qd8 {[%emt 0:04:59]} 21. O-O {[%emt 0:00:47]} Qb6+ {[%emt 0:03:12]} 22. Kh1 {[%emt 0:00:09]} O-O-O {[%emt 0:00:25]} 23. a5 {[%emt 0:13:12]} Qa7 {[%emt 0:06:58]} 24. Rd2 {[%emt 0:04:31]} Qa8 {[%emt 0:02:21]} 25. Qxh7 {[%emt 0:09:40]} Be4 {[%emt 0:00:25]} 26. Qh3 {[%emt 0:01:51]} Qc6 {[%emt 0:00:52]} 27. Rc1 {[%emt 0:00:28]} Kb8 {[%emt 0:00:15]} 28. Rc3 {[%emt 0:04:03]} Rg8 {[%emt 0:00:59]} 29. Bd5 {[%emt 0:01:02]} Qxc3 {[%emt 0:02:02]} 30. Qxc3 {[%emt 0:00:12]} Bxd5 {[%emt 0:00:07]} 31. Qc7+ {[%emt 0:02:26]} Ka8 {[%emt 0:00:05]} 32. h3 {[%emt 0:00:25]} Bc6 {[%emt 0:00:40]} 33. Qb6 {[%emt 0:00:07]} Bb7 {[%emt 0:00:21]} 34. Kh2 {[%emt 0:00:10]} Rc8 {[%emt 0:00:43]} 35. b4 {[%emt 0:07:20]} Rg5 {[%emt 0:00:23]} 36. Qe3 {[%emt 0:01:00]} Rcg8 {[%emt 0:00:12]} 37. g4 {[%emt 0:00:26]} f5 {[%emt 0:00:27]} 38. Rd4 {[%emt 0:00:58]} fxg4 {[%emt 0:01:00]} 39. Rxg4 {[%emt 0:00:08]} Rxg4 {[%emt 0:00:00]} 40. hxg4 {[%emt 0:00:00]} Rxg4 {[%emt 0:00:00]} 41. Qb6 {[%emt 0:00:54]} Rg8 {[%emt 0:04:02]} 42. b5 {[%emt 0:00:49]} axb5 {[%emt 0:01:08]} 43. Qxb5 {[%emt 0:01:09]} Rg7 {[%emt 0:02:11]} 44. Kh3 {[%emt 0:01:11]} Rf7 {[%emt 0:01:36]} 45. Kg4 {[%emt 0:00:41]} Bf3+ {[%emt 0:01:00]} 46. Kg3 {[%emt 0:00:06]} Bb7 {[%emt 0:00:08]} 47. a6 {[%emt 0:00:40]} Bc6 {[%emt 0:01:20]} 48. Qb6 {[%emt 0:08:00]} 1/2-1/2